bitfinex-derivatives/quotes_BNBF0:USTF0_20250101
["timestamp","ask_amount","ask_price","bid_price","bid_amount"]
[1735767266168,0.89069114,707.18,706.99,1.05933215]
[1735767266372,0.89069114,707.17,706.99,1.05933215]
[1735767266574,0.89069114,707.16,706.99,1.05933215]
[1735767266771,0.733,707.27,706.99,1.05933215]
[1735767266978,0.89062108,707.26,706.98,1.05933215]
[1735767267172,0.89062108,707.25,706.98,1.05933215]
[1735767267369,0.89062108,707.24,706.98,1.05933215]
[1735767267577,0.89062108,707.23,706.98,1.05933215]
[1735767267876,0.733,707.27,706.97,1.05933215]
[1735767267877,0.89062108,707.22,706.97,1.05933215]
[1735767268076,0.89062108,707.21,706.97,1.05933215]
[1735767268272,0.89062108,707.2,706.97,1.05933215]
[1735767268476,0.89062108,707.19,706.97,1.05933215]
[1735767268672,0.89062108,707.18,706.97,1.05933215]
[1735767268877,0.89062108,707.17,706.95,1.05933215]
[1735767269076,0.89062108,707.16,706.95,1.05933215]
[1735767269276,0.89062108,707.15,706.95,1.05933215]
[1735767269578,0.733,707.27,706.95,1.05933215]
[1735767269780,0.89050241,707.26,706.95,1.05933215]
[1735767270079,0.8904204,707.25,706.91,1.05933215]
[1735767270279,0.8904204,707.24,706.91,1.05933215]
[1735767270476,0.89030162,707.23,706.91,1.05933215]
[1735767270678,0.89030162,707.22,706.91,1.05933215]
[1735767270880,0.89030162,707.21,706.89,1.05933215]
[1735767271181,0.89030162,707.2,706.89,1.05933215]
[1735767271373,0.89030162,707.19,706.89,1.05933215]
[1735767271576,0.89030162,707.18,706.89,1.05933215]
[1735767271778,0.733,707.27,706.9,1.05933215]
[1735767272077,0.89025105,707.26,706.9,1.05933215]
[1735767272273,0.89025105,707.25,706.9,1.05933215]
[1735767272477,0.89025105,707.24,706.9,1.05933215]
[1735767272673,0.89025105,707.23,706.9,1.05933215]
[1735767272878,0.89025105,707.23,706.56,1.05933215]
[1735767272879,0.89025105,707.22,706.94,1.05933215]
[1735767273079,0.89015705,707.21,706.94,1.05933215]
[1735767273273,0.89015705,707.2,706.94,1.05933215]
[1735767273477,0.89015705,707.19,706.94,1.05933215]
[1735767273675,0.89015705,707.18,706.94,1.05933215]
[1735767273880,0.733,707.27,706.94,1.05933215]
[1735767274080,0.89012093,707.26,706.94,1.05933215]
[1735767274381,0.89012093,707.25,706.94,1.05933215]
[1735767274582,0.89012093,707.24,706.94,1.05933215]
[1735767274881,0.89012093,707.23,706.94,1.05933215]
[1735767275078,0.89012093,707.22,706.94,1.05933215]
[1735767275278,0.89012093,707.21,706.94,1.05933215]
[1735767275477,0.89012093,707.2,706.94,1.05933215]
[1735767275677,0.89010141,707.19,706.94,1.05933215]
[1735767275881,0.733,707.27,706.94,1.05933215]
[1735767276077,0.89010701,707.26,706.94,1.05933215]
[1735767276282,0.89010701,707.25,706.94,1.05933215]
[1735767276483,0.89010701,707.24,706.94,1.05933215]
[1735767276682,0.89010701,707.23,706.94,1.05933215]
[1735767276984,0.89010701,707.22,706.93,1.05933215]
[1735767277284,0.89010701,707.21,706.93,1.05933215]
[1735767277478,0.89010701,707.2,706.93,1.05933215]
[1735767277783,0.733,707.27,706.94,1.05933215]
[1735767277784,0.89010701,707.19,706.94,1.05933215]
[1735767277983,0.733,707.27,706.94,1.05933215]
[1735767278178,0.89008706,707.26,706.94,1.05933215]
[1735767278378,0.89008706,707.25,706.94,1.05933215]
[1735767278582,0.89008706,707.24,706.94,1.05933215]
[1735767278777,0.89008706,707.23,706.94,1.05933215]
[1735767279084,0.733,707.27,706.94,1.05933215]
[1735767279278,0.8900973,707.26,706.94,1.05933215]
[1735767279483,0.8900973,707.25,706.94,1.05933215]
[1735767279684,0.733,707.27,706.33,2.16280314]
[1735767279685,0.733,707.27,706.89,1.05933215]
[1735767279983,0.89007112,707.26,706.89,1.05933215]
[1735767280178,0.89007112,707.25,706.89,1.05933215]
[1735767280380,0.89007112,707.24,706.89,1.05933215]
[1735767280680,0.89007112,707.23,706.89,1.05933215]
[1735767280877,0.89007112,707.22,706.89,1.05933215]
[1735767281076,0.89007112,707.21,706.89,1.05933215]
[1735767281276,0.89007112,707.2,706.89,1.05933215]
[1735767281478,1.47697531,707.38,706.89,1.05933215]
[1735767281679,0.89002291,707.37,706.89,1.05933215]
[1735767281881,0.89002291,707.37,706.64,1.05933215]
[1735767281882,0.89002291,707.36,706.88,1.05933215]
[1735767282081,0.89002291,707.35,706.88,1.05933215]
[1735767282283,0.89002291,707.34,706.88,1.05933215]
[1735767282586,0.89002291,707.33,706.88,1.05933215]
[1735767282783,0.89002291,707.32,706.88,1.05933215]
[1735767282978,0.89002291,707.31,706.88,1.05933215]
[1735767283177,0.89002291,707.3,706.86,1.05933215]
[1735767283379,0.89002291,707.29,706.86,1.05933215]
[1735767283578,0.89002291,707.28,706.86,1.05933215]
[1735767283782,0.89002291,707.27,706.86,1.05933215]
[1735767283984,0.89002291,707.26,706.86,1.05933215]
[1735767284180,0.89002291,707.25,706.85,1.05933215]
[1735767284387,0.89002291,707.24,706.85,1.05933215]
[1735767284583,0.89002291,707.23,706.85,1.05933215]
[1735767284780,0.89002291,707.22,706.85,1.05933215]
[1735767284985,0.733,707.36,706.85,1.05933215]
[1735767285189,0.89014294,707.35,706.84,1.05933215]
[1735767285390,0.89014294,707.34,706.84,1.05933215]
[1735767285688,0.89014294,707.33,706.84,1.05933215]
[1735767285889,0.89014294,707.32,706.84,1.05933215]
[1735767286089,0.89014294,707.31,706.84,1.05933215]
[1735767286293,0.89014294,707.3,706.88,1.05933215]
[1735767286491,0.89014294,707.29,706.88,1.05933215]
[1735767286685,0.89014294,707.28,706.88,1.05933215]
[1735767286992,0.89014294,707.27,706.88,1.05933215]
[1735767287191,0.89014294,707.26,706.88,1.05933215]
[1735767287393,0.89014294,707.25,706.87,1.05933215]
[1735767287587,0.89014294,707.24,706.87,1.05933215]
[1735767287790,0.733,707.36,706.87,1.05933215]
[1735767287991,0.89003733,707.35,706.87,1.05933215]
[1735767288292,0.89003733,707.34,706.87,1.05933215]
[1735767288491,0.733,707.36,706.88,1.05933215]
[1735767288492,0.88997399,707.33,706.88,1.05933215]
[1735767288791,0.88997399,707.32,706.88,1.05933215]
[1735767288987,0.733,707.36,706.88,1.05933215]
[1735767289191,0.88997302,707.35,706.88,1.05933215]
[1735767289392,0.88997302,707.34,706.91,1.05933215]
[1735767289589,0.88997302,707.33,706.91,1.05933215]
[1735767289791,0.88997302,707.32,706.91,1.05933215]
[1735767290087,0.88997302,707.31,706.91,1.05933215]
[1735767290291,0.88997302,707.3,706.91,1.05933215]
[1735767290487,0.88997302,707.29,706.91,1.05933215]
[1735767290690,0.733,707.36,706.92,1.05933215]
[1735767290889,0.88993232,707.35,706.92,1.05933215]
[1735767291089,0.88993232,707.34,706.92,1.05933215]
[1735767291290,0.733,707.36,706.92,1.05933215]
[1735767291291,0.88993232,707.33,706.92,1.05933215]
[1735767291488,0.733,707.36,706.92,1.05933215]
[1735767291686,0.88996936,707.35,706.92,1.05933215]
[1735767291890,0.88996936,707.34,706.92,1.05933215]
[1735767292086,0.88996936,707.33,706.92,1.05933215]
[1735767292286,0.88996936,707.32,706.92,1.05933215]
[1735767292491,0.733,707.36,706.92,1.05933215]
[1735767292492,0.88996936,707.31,706.92,1.05933215]
[1735767292693,0.88996936,707.3,706.92,1.05933215]
[1735767292893,0.88996936,707.29,706.99,1.05933215]
[1735767293093,0.88996936,707.28,706.99,1.05933215]
[1735767293293,0.88996936,707.27,706.99,1.05933215]
[1735767293496,0.733,707.36,706.99,1.05933215]
[1735767293497,0.88996936,707.26,706.99,1.05933215]
[1735767293798,0.88996936,707.25,706.99,1.05933215]
[1735767293998,0.733,707.36,706.99,1.05933215]
[1735767294199,0.733,707.36,707.03,1.05933215]
[1735767294200,0.88985443,707.35,707.03,1.05933215]
[1735767294400,0.88985443,707.34,707.03,1.05933215]
[1735767294601,0.88983041,707.33,707.03,1.05933215]
[1735767294900,0.88983041,707.32,707.03,1.05933215]
[1735767295095,0.88983041,707.31,707.03,1.05933215]
[1735767295296,0.88983041,707.3,707.04,1.05933215]
[1735767295494,0.88983041,707.29,707.04,1.05933215]
[1735767295697,0.88983041,707.28,707.04,1.05933215]
[1735767295895,0.88983041,707.27,707.04,1.05933215]
[1735767296094,0.88983041,707.26,707.04,1.05933215]
[1735767296399,0.88983041,707.25,707.04,1.05933215]
[1735767296594,0.733,707.36,707.04,1.05933215]
[1735767296902,0.8898206,707.35,707.04,1.05933215]
[1735767297100,0.8898206,707.34,707.04,1.05933215]
[1735767297400,0.8898206,707.34,706.48,2.16280314]
[1735767297401,0.8898206,707.33,707.05,1.05933215]
[1735767297598,0.8898206,707.32,707.05,1.05933215]
[1735767297798,0.733,707.36,707.05,1.05933215]
[1735767297799,0.88979355,707.31,707.05,1.05933215]
[1735767297999,0.88979355,707.3,707.05,1.05933215]
[1735767298199,0.733,707.36,707.05,1.05933215]
[1735767298396,0.88979315,707.35,707.05,1.05933215]
[1735767298597,0.88979315,707.34,707.05,1.05933215]
[1735767298895,0.88979315,707.33,707.05,1.05933215]
[1735767299095,0.733,707.36,707.05,1.05933215]
[1735767299096,0.88979315,707.32,707.05,1.05933215]
[1735767299297,0.88979315,707.31,707.05,1.05933215]
[1735767299496,0.88979315,707.3,707.05,1.05933215]
[1735767299702,0.88979315,707.29,707.05,1.05933215]
[1735767299902,0.88979315,707.28,707.05,1.05933215]
[1735767300104,0.733,707.36,707.04,1.05933215]
[1735767300404,0.88985511,707.35,707.04,1.05933215]
[1735767300600,0.733,707.36,707.04,1.05933215]
[1735767300802,0.88990919,707.35,707.04,1.05933215]
[1735767301003,0.88990919,707.34,707.04,1.05933215]
[1735767301202,0.88990919,707.33,707.05,1.05933215]
[1735767301398,0.88990919,707.32,707.05,1.05933215]
[1735767301598,0.88990919,707.31,707.05,1.05933215]
[1735767301802,0.88990919,707.3,707.05,1.05933215]
[1735767301996,0.88990919,707.29,707.05,1.05933215]
[1735767302200,0.88990919,707.28,707.05,1.05933215]
[1735767302403,0.88990919,707.27,707.05,1.05933215]
[1735767302703,0.88990919,707.26,707.05,1.05933215]
[1735767302904,0.88990919,707.25,707.05,1.05933215]
[1735767303207,1.4769283,707.41,707.06,1.05933215]
[1735767303405,0.733,707.24,707.06,1.05933215]
[1735767304506,0.88998874,707.23,707.06,1.05933215]
[1735767304706,0.733,707.24,707.06,1.05933215]
[1735767305607,0.733,707.24,707.01,1.05933215]
[1735767306308,0.89004139,707.23,707.01,1.05933215]
[1735767306502,0.89004176,707.22,707.01,1.05933215]
[1735767306704,0.733,707.24,707.0,1.05933215]
[1735767306907,0.89002417,707.23,707.0,1.05933215]
[1735767307108,0.733,707.24,707.0,1.05933215]
[1735767307307,0.89002652,707.23,707.0,1.05933215]
[1735767307504,0.733,707.24,707.0,1.05933215]
[1735767308109,0.733,707.24,706.98,1.05933215]
[1735767309007,0.733,707.24,707.0,1.05933215]
[1735767309403,0.89009369,707.23,707.0,1.05933215]
[1735767309608,0.733,707.24,707.0,1.05933215]
[1735767309809,0.733,707.24,706.77,1.05933215]
[1735767309810,0.733,707.24,706.99,1.05933215]
[1735767310010,0.89010324,707.23,706.99,1.05933215]
[1735767310212,0.89010324,707.22,706.99,1.05933215]
[1735767310414,0.733,707.24,706.99,1.05933215]
[1735767310613,0.89019027,707.23,706.99,1.05933215]
[1735767310811,0.733,707.24,706.99,1.05933215]
[1735767311014,0.89024608,707.23,706.99,1.05933215]
[1735767311211,0.733,707.24,706.96,1.05933215]
[1735767311410,0.89025778,707.23,706.96,1.05933215]
[1735767311617,0.733,707.24,706.96,1.05933215]
[1735767311810,0.89030711,707.23,706.96,1.05933215]
[1735767312009,0.733,707.24,706.96,1.05933215]
[1735767312208,0.89035584,707.23,706.96,1.05933215]
[1735767312411,0.733,707.24,706.96,1.05933215]
[1735767312609,0.89036852,707.23,706.96,1.05933215]
[1735767312810,0.733,707.24,706.96,1.05933215]
[1735767313012,0.89038106,707.23,706.96,1.05933215]
[1735767313211,0.89038106,707.22,706.96,1.05933215]
[1735767313516,0.733,707.24,706.96,1.05933215]
[1735767313816,0.8904946,707.23,706.96,1.05933215]
[1735767314116,0.8904946,707.22,706.96,1.05933215]
[1735767314319,0.8904946,707.22,706.25,2.16280314]
[1735767314320,0.8904946,707.21,706.95,1.05933215]
[1735767314512,0.8904946,707.2,706.95,1.05933215]
[1735767314712,0.733,707.24,706.95,1.05933215]
[1735767314913,0.89062768,707.23,706.95,1.05933215]
[1735767315213,0.733,707.24,706.96,1.05933215]
[1735767315420,0.8905655,707.23,706.96,1.05933215]
[1735767315618,0.8905655,707.22,706.96,1.05933215]
[1735767315920,0.89058008,707.21,706.96,1.05933215]
[1735767316114,0.89058008,707.2,706.96,1.05933215]
[1735767316313,0.89058008,707.19,706.96,1.05933215]
[1735767316520,0.733,707.24,706.95,1.05933215]
[1735767316813,0.89065622,707.23,706.95,1.05933215]
[1735767317016,0.89065622,707.22,706.95,1.05933215]
[1735767317214,0.89065622,707.21,706.95,1.05933215]
[1735767317412,0.89065622,707.2,706.99,1.05933215]
[1735767317615,0.733,707.24,706.99,1.05933215]
[1735767317817,0.89072694,707.23,706.99,1.05933215]
[1735767318119,0.89072694,707.22,706.99,1.05933215]
[1735767318318,0.89072694,707.21,706.99,1.05933215]
[1735767318519,0.89072694,707.2,706.99,1.05933215]
[1735767318817,0.733,707.24,706.99,1.05933215]
[1735767319017,0.89084373,707.23,706.99,1.05933215]
[1735767319217,0.89084373,707.22,706.99,1.05933215]
[1735767319418,0.89084373,707.22,706.76,1.05933215]
[1735767319419,0.733,707.24,707.0,1.05933215]
[1735767319718,0.89096322,707.23,707.0,1.05933215]
[1735767319919,0.733,707.24,707.0,1.05933215]
[1735767320122,0.89098143,707.23,707.0,1.05933215]
[1735767320321,0.733,707.24,707.0,1.05933215]
[1735767320518,0.89104523,707.23,707.0,1.05933215]
[1735767320719,0.89104523,707.23,706.35,2.16280314]
[1735767320720,0.89104523,707.22,707.07,1.05933215]
[1735767321025,0.89093263,707.21,707.07,1.05933215]
[1735767321221,1.4769283,707.41,707.07,1.05933215]
[1735767321526,0.89086168,707.4,707.07,1.05933215]
[1735767321725,0.89086168,707.4,706.85,1.05933215]
[1735767321726,0.89086168,707.39,707.06,1.05933215]
[1735767321928,0.89086168,707.38,707.06,1.05933215]
[1735767322226,0.89086168,707.37,707.06,1.05933215]
[1735767322423,0.89086168,707.36,707.06,1.05933215]
[1735767322623,0.89086168,707.35,707.06,1.05933215]
[1735767322824,0.89086168,707.34,707.06,1.05933215]
[1735767323027,0.89086168,707.33,707.12,1.05933215]
[1735767323227,0.89086168,707.32,707.12,1.05933215]
[1735767323428,0.89086168,707.31,707.12,1.05933215]
[1735767323726,0.733,707.4,707.12,1.05933215]
[1735767323727,0.89086168,707.3,707.12,1.05933215]
[1735767323926,0.89086168,707.29,707.12,1.05933215]
[1735767324130,0.89086168,707.28,707.13,1.05933215]
[1735767324330,0.89086168,707.27,707.13,1.05933215]
[1735767324527,0.733,707.4,707.13,1.05933215]
[1735767324528,0.89086168,707.26,707.13,1.05933215]
[1735767324723,0.733,707.4,707.13,1.05933215]
[1735767324926,0.89087861,707.39,707.13,1.05933215]
[1735767325130,0.733,707.4,707.13,1.05933215]
[1735767325331,0.89087874,707.39,707.13,1.05933215]
[1735767325533,0.89087874,707.38,707.13,1.05933215]
[1735767325725,0.89087874,707.37,707.13,1.05933215]
[1735767325929,0.89087874,707.36,707.13,1.05933215]
[1735767326132,0.89087874,707.35,707.14,1.05933215]
[1735767326332,0.89087874,707.34,707.14,1.05933215]
[1735767326531,0.89087874,707.33,707.14,1.05933215]
[1735767326731,0.733,707.4,707.14,1.05933215]
[1735767326932,0.89072376,707.39,707.14,1.05933215]
[1735767327131,0.89072376,707.38,707.14,1.05933215]
[1735767327331,0.89072376,707.37,706.93,1.05933215]
[1735767327630,0.89072376,707.36,706.93,1.05933215]
[1735767327831,0.89072376,707.35,706.93,1.05933215]
[1735767328030,0.89072376,707.34,706.93,1.05933215]
[1735767328231,0.89072376,707.33,706.92,1.05933215]
[1735767328428,0.89063231,707.32,706.92,1.05933215]
[1735767328729,0.733,707.4,706.92,1.05933215]
[1735767328934,0.8906382,707.39,706.92,1.05933215]
[1735767329127,0.8906382,707.38,706.92,1.05933215]
[1735767329331,0.8906382,707.37,706.92,1.05933215]
[1735767329530,0.8906382,707.36,706.91,1.05933215]
[1735767329834,0.8906382,707.35,706.91,1.05933215]
[1735767330029,0.8906382,707.34,706.91,1.05933215]
[1735767330334,0.8906382,707.33,706.91,1.05933215]
[1735767330535,0.733,707.4,706.91,1.05933215]
[1735767330835,0.89057578,707.39,706.91,1.05933215]
[1735767331035,0.89057578,707.38,706.89,1.05933215]
[1735767331232,0.89057578,707.37,706.89,1.05933215]
[1735767331431,0.89057578,707.36,706.89,1.05933215]
[1735767331632,0.89057578,707.35,706.89,1.05933215]
[1735767331832,0.89057578,707.34,706.89,1.05933215]
[1735767332034,0.733,707.4,706.89,1.05933215]
[1735767332235,0.733,707.4,706.88,1.05933215]
[1735767332236,0.89056073,707.39,706.88,1.05933215]
[1735767332436,0.89056073,707.38,706.88,1.05933215]
[1735767332633,0.89056073,707.37,706.88,1.05933215]
[1735767332832,0.733,707.4,706.88,1.05933215]
[1735767333029,0.89048975,707.39,706.88,1.05933215]
[1735767333234,0.733,707.4,706.88,1.05933215]
[1735767333235,0.89048975,707.38,706.88,1.05933215]
[1735767333435,0.89048975,707.37,706.88,1.05933215]
[1735767333634,0.89048975,707.36,706.88,1.05933215]
[1735767333836,0.733,707.4,706.88,1.05933215]
[1735767334036,0.89041143,707.39,706.88,1.05933215]
[1735767334239,0.733,707.4,706.86,1.05933215]
[1735767334432,0.89042004,707.39,706.86,1.05933215]
[1735767334635,0.89042004,707.38,706.86,1.05933215]
[1735767334837,0.89042004,707.37,706.86,1.05933215]
[1735767335134,0.8903286,707.36,706.86,1.05933215]
[1735767335339,0.8903286,707.35,706.86,1.05933215]
[1735767335633,0.733,707.4,706.86,1.05933215]
[1735767335833,0.89027429,707.39,706.86,1.05933215]
[1735767336035,0.89027429,707.38,706.86,1.05933215]
[1735767336235,0.89027429,707.37,706.83,1.05933215]
[1735767336436,0.89027429,707.36,706.83,1.05933215]
[1735767336636,0.89027429,707.35,706.83,1.05933215]
[1735767336832,0.733,707.4,706.83,1.05933215]
[1735767337041,0.89020936,707.39,706.83,1.05933215]
[1735767337341,0.89020936,707.38,706.95,1.05933215]
[1735767337537,0.89020936,707.37,706.95,1.05933215]
[1735767337837,0.89020936,707.36,706.95,1.05933215]
[1735767338040,0.733,707.4,706.95,1.05933215]
[1735767338241,0.89020645,707.39,706.95,1.05933215]
[1735767338539,0.89020645,707.38,706.95,1.05933215]
[1735767338741,0.89020645,707.37,706.95,1.05933215]
[1735767338934,0.733,707.4,706.95,1.05933215]
[1735767338935,0.89020645,707.36,706.95,1.05933215]
[1735767339140,0.733,707.4,706.95,1.05933215]
[1735767339341,0.89021169,707.39,706.95,1.05933215]
[1735767339543,0.89021169,707.38,706.95,1.05933215]
[1735767339737,0.89021169,707.37,706.95,1.05933215]
[1735767339935,0.89028436,707.36,706.95,1.05933215]
[1735767340137,1.47664107,707.5,706.95,1.05933215]
[1735767340335,0.89029604,707.49,706.95,1.05933215]
[1735767340535,0.89029604,707.48,706.95,1.05933215]
[1735767340737,0.89029604,707.47,706.94,1.05933215]
[1735767340940,0.89029604,707.46,706.94,1.05933215]
[1735767341134,0.89029604,707.45,706.94,1.05933215]
[1735767341338,0.89029604,707.44,706.94,1.05933215]
[1735767341539,0.89029604,707.43,706.94,1.05933215]
[1735767341740,0.89029604,707.42,706.94,1.05933215]
[1735767341940,0.89029604,707.41,706.94,1.05933215]
[1735767342140,0.89029604,707.4,706.95,1.05933215]
[1735767342445,0.89029604,707.39,706.95,1.05933215]
[1735767342641,0.89029604,707.38,706.95,1.05933215]
[1735767342839,0.733,707.47,706.95,1.05933215]
[1735767343040,0.733,707.47,706.19,2.16280314]
[1735767343041,0.8903608,707.46,707.01,1.05933215]
[1735767343243,0.8903608,707.45,707.01,1.05933215]
[1735767343438,0.8903608,707.44,707.01,1.05933215]
[1735767343646,0.8903608,707.43,707.01,1.05933215]
[1735767343847,0.8903608,707.42,707.01,1.05933215]
[1735767344043,0.733,707.47,706.94,1.05933215]
[1735767344044,0.8903608,707.41,706.94,1.05933215]
[1735767344240,0.8903608,707.4,706.94,1.05933215]
[1735767344439,0.8903608,707.39,706.94,1.05933215]
[1735767344644,0.8903608,707.38,706.94,1.05933215]
[1735767344845,0.8903608,707.37,706.94,1.05933215]
[1735767345045,0.8903608,707.36,706.94,1.05933215]
[1735767345347,0.733,707.47,706.92,1.05933215]
[1735767345348,0.8903608,707.35,706.92,1.05933215]
[1735767345645,0.8903608,707.34,706.92,1.05933215]
[1735767345847,0.733,707.47,706.41,1.27119858]
[1735767345848,0.8903608,707.33,706.94,1.05933215]
[1735767346048,0.8903608,707.32,706.94,1.05933215]
[1735767346347,0.8903608,707.31,706.94,1.05933215]
[1735767346547,0.8903608,707.3,706.94,1.05933215]
[1735767346741,0.8903608,707.29,706.94,1.05933215]
[1735767346945,0.8903608,707.28,706.94,1.05933215]
[1735767347145,0.8903608,707.27,706.94,1.05933215]
[1735767347346,0.8903608,707.26,706.94,1.05933215]
[1735767347647,0.8903608,707.25,706.94,1.05933215]
[1735767347848,0.733,707.47,706.94,1.05933215]
[1735767348043,0.8901156,707.46,706.95,1.05933215]
[1735767348245,0.8901156,707.45,706.95,1.05933215]
[1735767348442,0.8901156,707.44,706.95,1.05933215]
[1735767348641,0.8901156,707.43,706.95,1.05933215]
[1735767348841,0.8901156,707.42,706.95,1.05933215]
[1735767349148,0.8901156,707.41,706.95,1.05933215]
[1735767349349,0.8901156,707.41,706.36,2.16280314]
[1735767349350,0.8901156,707.4,706.93,1.05933215]
[1735767349548,0.8901156,707.39,706.93,1.05933215]
[1735767349749,0.8901156,707.38,706.93,1.05933215]
[1735767349943,0.8901156,707.37,706.93,1.05933215]
[1735767350151,0.8901156,707.36,706.93,1.05933215]
[1735767350349,0.8901156,707.35,706.93,1.05933215]
[1735767350649,0.8901156,707.34,706.93,1.05933215]
[1735767350845,0.8901156,707.33,706.93,1.05933215]
[1735767351052,0.8901156,707.32,706.93,1.05933215]
[1735767351251,0.8901156,707.31,706.93,1.05933215]
[1735767351450,0.8901156,707.3,706.94,1.05933215]
[1735767351651,0.8901156,707.29,706.94,1.05933215]
[1735767351853,0.8901156,707.28,706.94,1.05933215]
[1735767352151,0.8901156,707.27,706.94,1.05933215]
[1735767352349,0.8901156,707.26,706.94,1.05933215]
[1735767352550,1.47683951,707.41,706.96,1.05933215]
[1735767352749,0.89002456,707.4,706.96,1.05933215]
[1735767352953,0.89002456,707.39,706.96,1.05933215]
[1735767353150,0.89002456,707.38,706.96,1.05933215]
[1735767353350,0.89002456,707.37,706.96,1.05933215]
[1735767353551,0.89002456,707.36,706.96,1.05933215]
[1735767353749,0.89002456,707.35,706.96,1.05933215]
[1735767353950,0.89002456,707.34,706.96,1.05933215]
[1735767354149,0.89002456,707.33,706.96,1.05933215]
[1735767354349,0.89002456,707.32,706.96,1.05933215]
[1735767354554,0.89002456,707.31,706.96,1.05933215]
[1735767354755,1.47683951,707.41,706.96,1.05933215]
[1735767354756,0.89002456,707.3,706.96,1.05933215]
[1735767354949,0.89002456,707.29,706.96,1.05933215]
[1735767355156,0.89002456,707.28,706.96,1.05933215]
[1735767355349,0.89002456,707.27,706.96,1.05933215]
[1735767355553,0.89002456,707.26,706.96,1.05933215]
[1735767355756,0.89002456,707.25,706.96,1.05933215]
[1735767355956,1.47683951,707.41,706.76,1.05933215]
[1735767355957,0.89002456,707.24,706.95,1.05933215]
[1735767356256,1.47683951,707.41,706.95,1.05933215]
[1735767356257,0.89002456,707.23,706.95,1.05933215]
[1735767356450,1.47683951,707.41,706.95,1.05933215]
[1735767356656,0.88998315,707.4,706.95,1.05933215]
[1735767356955,0.88998315,707.39,706.95,1.05933215]
[1735767357158,0.88998315,707.38,706.94,1.05933215]
[1735767357355,0.88998315,707.37,706.94,1.05933215]
[1735767357555,0.88998315,707.36,706.94,1.05933215]
[1735767357754,0.88998315,707.35,706.94,1.05933215]
[1735767357954,0.88998315,707.34,706.94,1.05933215]
[1735767358150,0.88998315,707.34,706.37,2.16280314]
[1735767358151,1.47683951,707.41,706.95,1.05933215]
[1735767358357,0.88997914,707.4,706.95,1.05933215]
[1735767358656,0.88997914,707.39,706.95,1.05933215]
[1735767358852,0.88997914,707.38,706.95,1.05933215]
[1735767359058,0.88997914,707.37,706.95,1.05933215]
[1735767359359,0.88997914,707.36,706.97,1.05933215]
[1735767359657,0.88997914,707.35,706.97,1.05933215]
[1735767359852,0.88997914,707.34,706.97,1.05933215]
[1735767360056,0.88997914,707.33,706.97,1.05933215]
[1735767360255,0.88997914,707.32,706.97,1.05933215]
[1735767360454,0.88997914,707.31,706.97,1.05933215]
[1735767360650,0.88997914,707.3,706.97,1.05933215]
[1735767360855,1.47683951,707.41,706.97,1.05933215]
[1735767361057,0.89004935,707.4,706.97,1.05933215]
[1735767361357,0.89004935,707.39,706.91,1.05933215]
[1735767361560,0.8899863,707.38,706.91,1.05933215]
[1735767361759,0.8899863,707.37,706.91,1.05933215]
[1735767361959,0.8899863,707.36,706.91,1.05933215]
[1735767362158,0.8899863,707.35,706.91,1.05933215]
[1735767362359,0.8899863,707.34,706.91,1.05933215]
[1735767362561,0.8899863,707.33,706.91,1.05933215]
[1735767362755,0.8899863,707.32,706.91,1.05933215]
[1735767362954,0.8899863,707.31,706.91,1.05933215]
[1735767363157,0.8899863,707.3,706.91,1.05933215]
[1735767363358,0.8899863,707.29,706.91,1.05933215]
[1735767363653,0.8899863,707.28,706.91,1.05933215]
[1735767363858,0.8899863,707.27,706.91,1.05933215]
[1735767364054,0.8899863,707.26,706.91,1.05933215]
[1735767364359,0.8899863,707.25,706.91,1.05933215]
[1735767364554,0.8899863,707.24,706.91,1.05933215]
[1735767364861,0.8899863,707.23,706.9,1.05933215]
[1735767365062,0.733,707.31,706.9,1.05933215]
[1735767365261,0.88995494,707.3,706.9,1.05933215]
[1735767365459,0.88995494,707.29,706.9,1.05933215]
[1735767365656,0.88995494,707.28,706.9,1.05933215]
[1735767365856,0.88995494,707.27,706.9,1.05933215]
[1735767366161,0.88995494,707.26,706.9,1.05933215]
[1735767366361,0.88995494,707.25,706.9,1.05933215]
[1735767366557,0.88995494,707.24,706.9,1.05933215]
[1735767366760,0.88995494,707.23,706.9,1.05933215]
[1735767366956,0.733,707.31,706.9,1.05933215]
[1735767367160,0.88982918,707.3,706.9,1.05933215]
[1735767367361,0.88982918,707.29,706.9,1.05933215]
[1735767367658,0.88982918,707.28,706.9,1.05933215]
[1735767367862,0.733,707.31,706.9,1.05933215]
[1735767367863,0.88982918,707.27,706.9,1.05933215]
[1735767368062,0.88982918,707.26,706.9,1.05933215]
[1735767368263,0.88982918,707.25,706.9,1.05933215]
[1735767368461,0.88982918,707.24,706.9,1.05933215]
[1735767368658,0.88982918,707.23,706.9,1.05933215]
[1735767368860,0.88982918,707.22,706.9,1.05933215]
[1735767369058,0.733,707.31,706.9,1.05933215]
[1735767369263,0.88974607,707.3,706.9,1.05933215]
[1735767369461,0.733,707.31,706.9,1.05933215]
[1735767369658,0.88963685,707.3,706.9,1.05933215]
[1735767369858,0.88963685,707.29,706.9,1.05933215]